Workbook

Sheet COTIZACION
N1: Tasas: | Q1: Tipo de Poliza: | T1: Coberturas: | X1: Rubros:
D2: =NOW() -> 2016-07-01T12:23:43.010 | F2: CUADRO DE TASAS | K2: Control coberturas | N2: Incendio y sublimites | O2: =IF(M7=0,0.16%,0.2%) -> 0.0016 | Q2: Riesgos Nombrados | T2: Remocion de Escombros | X2: Edificio e Instalaciones
J3: Robo | K3: =C23*25% -> 7500 | N3: Robo | O3: 0.007 | Q3: Todo Riesgo para Propiedades | T3: Honorarios de Ingenieros, Arquitectos y Topografos | X3: Contenido
J4: Rc | K4: =IF((C22+C23)>K22,K21,(C22+C23)*50%) -> 56500 | N4: Responsabilidad Civil | O4: 0.007 | T4: Documentos y Modelos | X4: Equipo Electrónico
N5: Equipo Electrónico | O5: 0.008 | Q5: Clasificacion: | T5: Clausula Electrica | X5: Mercaderias
M6: Maremoto | N6: NO | O6: 0 | Q6: Casa Habitacion | T6: Gastos de Extincion de Incendio | X6: Maquinarias
B7: COTIZACIÓN INCENDIO CASA HABITACION | M7: =VLOOKUP(G11,N6:O7,2) -> 0 | N7: SI | O7: 1 | Q7: Condominio de Apartamentos | T7: Vidrios y Cristales
F8: ADJUNTOS A IMPRIMIR | T8: Arrendamiento USD$ 500 por mes, maximo 3 meses
B9: EJECUTIVO (a) | F9: Anexo Asitencia Hogar
B10: BROKER:
B11: CLIENTE: | F11: DESEA COBERTURA DE MAREMOTO? | G11: NO | K11: Rango EE
B12: CLASIFICACION: | C12: Casa - Habitacion | K12: 0
B13: TIPO DE DOCUMENTO: | C13: Poliza Nueva | J13: =C24 -> 3000 | K13: =IF(C24>L13,K12,C23*10%) -> 3000 | L13: =C23*10% -> 3000
B15: UBICACIÓN: | I15: =C22 -> 80000 | K15: rango robo | L15: rango SA
I16: =C23 -> 30000 | K16: 0 | L16: 1
B17: DETALLE DE RUBROS : | C17: SUMA ASEGURADA | J17: =C23*30% -> 9000 | K17: =IF(C23>70000,70000,C23*30%) -> 9000 | L17: 1000000
B18: Incendio: Incendio, Caida de Rayo, Terremoto, Temblor, Lluvia e Inundación, Erupción Volcánica, Conmoción | P18: INTERES | Q18: 15
B19: Civil, Huelga, Motín, Alborotos Populares, Explosión, Cobertura Extendida, Explosion, Daños por Agua, Colapso, | K19: Rango RC | P19: CUOTA MINIMA | Q19: 50
B20: =IF(M7=1,"Incluye Maremoto.","Excluye Maremoto.") -> Excluye Maremoto. | J20: =C22+C23+C24 -> 113000 | K20: 0 | P20: cuota | Q20: =ROUND(D52/C50,2) -> 
I21: accidentes | K21: =IF(L21>100000,K22,(C22+C23+C24)*50%) -> 56500 | L21: =(C22+C23+C24)*50% -> 56500 | P21: total | Q21: =Q20*I18 -> 
B22: Edificio e Instalaciones | C22: 80000 | I22: 5000 | K22: 100000 | P22: diferencia | Q22: =I19-Q21 -> 
B23: Contenido | C23: 30000 | I23: 1000 | K23: descuento | P23: cuota inicial | Q23: =Q20+Q22 ->  | R23: =Q20*(I18-1) ->  | S23: =R23+Q23 ->  | T23: .
B24: Equipo Electrónico: | C24: 3000 | I24: 500 | K24: 0.03 | P24: ncuotas | Q24: =C50-1 -> 
I25: 100 | K25: =D47*K24 -> 26.1849
B26: SUMA ASEGURADA TOTAL INCENDIO: | C26: =IF(C22+C23+C24>500000,"ERROR: SOLO PUEDE COTIZAR HASTA $500.000",C22+C23+C24) -> 113000 | K26: =ROUND(D47-K25,2) -> 846.65
D27: =C26*O2 -> 180.8 | I27: 0
B28: COBERTURAS ADICIONALES: | C28: 0.3 | I28: 1 | J28: 35
B29: Robo y/o Asalto a Primer Riesgo ( Contenido): | C29: 9000 | D29: =C29*O3 -> 63 | H29: Pago de Accidentes | I29: 2 | J29: =2*35*95% -> 66.5 | O29: 0.035
B30: Equipo Electrónico (Incluye Robo): | C30: 3000 | D30: =C30*O5 -> 24 | H30: =VLOOKUP(C33,I27:J37,2,FALSE) -> 35 | I30: 3 | J30: =2*35*90% -> 63 | O30: 0.005 | P30: calculo de derecho de póliza
B31: Responsabilidad Civil: | C31: 56500 | D31: =C31*O4 -> 395.5 | I31: 4 | J31: =2*35*85% -> 59.5 | O31: =Q31 -> 3 | Q31: =SUM(Q32:Q37) -> 3
D32: =35 -> 35 | H32: Prima Minima | I32: 5 | J32: =2*35*80% -> 56 | P32: 0.5 | Q32: =IF($D$40>=R32,IF($D$40<=S32,P32,0),0) -> 0 | R32: 0 | S32: 251
B33: ACCIDENTES PERSONALES (Miembros de la Familia): | C33: 1 | D33: =IF(C33>9," (Hasta 70 años)", " ") ->  | H33: =ROUND(SUM(D27:D34),2) -> 733.3 | I33: 6 | J33: =2*35*80% -> 56 | N33: =VLOOKUP(C49,P42:S43,3,FALSE) -> 3 | P33: 1 | Q33: 0 | R33: 251 | S33: 501
B34: Muerte Accidental e Invalidez hasta $ 5.000 C/U | C34: =I22*C33 -> 5000 | D34: =H30 -> 35 | H34: 100 | I34: 7 | J34: 56 | P34: 3 | Q34: 3 | R34: 501 | S34: 1001
B35: Gastos Medicos hasta $ 1.000 C/U | C35: =I23*C33 -> 1000 | I35: 8 | J35: 56 | O35: 0.12 | P35: 5 | Q35: 0 | R35: 1001 | S35: 2001
B36: Gastos de Sepelio | C36: =IF(H30>0,500,0) -> 500 | I36: 9 | J36: 56 | P36: 7 | Q36: 0 | R36: 2001 | S36: 4001
B37: Gastos de Ambulancia | C37: =IF(H30>0,100,0) -> 100 | I37: 10 | J37: 56 | P37: 9 | Q37: 0 | R37: 4001 | S37: 999999
B38: COSTOS: | O38: =VLOOKUP(C49,P42:S44,4,FALSE) -> 
B40: Prima Neta: | D40: =IF(H33<100,H34,H33) -> 733.3
B41: Super Intendencia de Bancos 3.5% | D41: =ROUND(D40*3.5%,2) -> 25.67 | J41: 3 | P41: tipos de crédito
B42: Seguro Social Campesino 0.50% | D42: =ROUND(D40*0.5%,2) -> 3.67 | J42: 6 | P42: Contado | R42: 3
B43: Derecho de Emision | D43: =O31 -> 3 | J43: 12 | P43: Diferido con Tarjeta de Credito | Q43: 2 | R43: 2 | S43: Cuotas
B44: Subtotal: | D44: =ROUND(SUM(D40:D43),2) -> 765.64
B45: Iva 14% | D45: =ROUND(D44*14%,2) -> 107.19
B47: PRIMA TOTAL | D47: =ROUND(SUM(D44:D45),2) -> 872.83
B49: FORMAS DE PAGO: | C49: Contado
B50: =VLOOKUP(C49,P42:S43,4,FALSE) -> 
D51: =IF(N33=2,"___________","") -> 
B52: =IF(N33=3,"Valor a Pagar con Descuento", "Valor a Pagar") -> Valor a Pagar con Descuento | D52: =IF(N33=2,F45+D47,K26) -> 846.65
B54: =IF(N33<>3,"Cuota inicial de ","") ->  | C54: =IF(N33<>3,Q23,"") -> 
B55: =IF(N33<>3,CONCATENATE("Y ",Q24," ",O38," de"),"") ->  | C55: =IF(N33<>3,Q20,"") -> 
D60: =NOW() -> 2016-07-01T12:23:43.010
B62: CONDICIONES A REFLEJARSE EN IMPRESIÓN FINAL:
B66: SUBLIMITES INCLUIDOS EN LA SUMA ASEGURADA:
B67: =IF(C33>0,"Coberturas de Accidentes Personales Empleados Domesticos ( Por Evento y en Agregado), hasta 2 personas"," ") -> Coberturas de Accidentes Personales Empleados Domesticos ( Por Evento y en Agregado), hasta 2 personas
B68: Gastos de Arriendo en caso de no accesibilidad a la vivienda (500 mensuales, hasta 3 meses)
B69: Remocion de Escombros ( Por Evento y en Agregado) | D69: 10000
B70: Honorarios de Ingenieros, Arquitectos y Topografos (Por Evento y en Agregado) | D70: 5000
B71: Rotura de Vidrios (Por Evento y en Agregado) | D71: 2500
B72: Rotura de Maquinaria | D72: 2000
B73: =IF(C23>0,"Clausula Electrica"," ") -> Clausula Electrica | D73: =IF(C23>0,2500," ") -> 2500
B75: AMPAROS ADICIONALES
B77: Asistencia Hogar
B78: Pago de Prima (15 días)
B79: Cancelación de Póliza (30 días)
B80: Plazo para reportar siniestros (7 días)
B81: Destrucción Preventiva
B82: Autoridad Civil
B83: Restitución Automatica de la Suma Asegurada
B85: EXCLUSIONES:
B87: Bienes Excluidos:
B88: Terreno y cimientos.
B89: Títulos y/o valores
B90: Dinero, joyas, pieles
B91: Vehículos
B92: Obras de Arte
B93: =IF(C24>0,"Equipos fuera del Predio Asegurado (Portabilidad)"," ") -> Equipos fuera del Predio Asegurado (Portabilidad)
B95: DEDUCIBLES:
B97: Fenómenos de la Naturaleza y demás Eventos Catastróficos:
B98: 2% de la suma total asegurada, no menor a USD 2.000
B99: Otros eventos Daños Materiales:
B100: 10% del valor del siniestro, minimo USD 250.00
B101: =IF(C33>0,"Accidentes Personales:"," ") -> Accidentes Personales:
B102: =IF(C33>0,"USD 50.00 Gastos Medicos"," ") -> USD 50.00 Gastos Medicos
B105: Notas: La presente cotizacion tendra validez por 30 dias y sus Condiciones estan sujetas a la inspeccion del predio.
B106: En caso de Siniestro el Asegurado deberá contar con los documentos que demuestren la preexistencia de los
B107: bienes asegurados, caso contrario proporcionará un listado detallado y valorizado de los bienes que superen
B108: individualmente los USD 500.00, previo a la emision de la Poliza.
